bitfinex/quotes_SOLUSD_20260201
["timestamp","ask_amount","ask_price","bid_price","bid_amount"]
[1769910663930,13.71670381,104.93,104.89,4.34058312]
[1769910664507,13.71670381,104.94,104.89,4.34058312]
[1769910664708,4.35176764,104.94,104.91,13.87256291]
[1769910665022,9.36493617,104.95,104.92,4.34058312]
[1769910665023,4.35176764,104.95,104.92,4.34058312]
[1769910665420,4.35176764,104.94,104.91,40.35256291]
[1769910665925,4.35176764,104.94,104.91,13.87256291]
[1769910666232,13.71670381,104.94,104.91,4.34058312]
[1769910667228,4.35176764,104.94,104.91,4.34058312]
[1769910674131,4.35176764,104.94,104.91,65.54058312]
[1769910676922,4.35176764,104.94,104.92,4.38049106]
[1769910677130,23.08289265,104.95,104.92,4.38049106]
[1769910677524,13.55372883,104.95,104.92,4.38049106]
[1769910678838,4.18879266,104.94,104.91,13.91204938]
[1769910683151,18.89331475,104.95,104.92,4.38049106]
[1769910683343,23.08210741,104.95,104.92,4.38049106]
[1769910683741,4.18879266,104.94,104.92,4.38049106]
[1769910683933,4.18879266,104.94,104.91,13.91204938]
[1769910684238,4.18879266,104.92,104.89,13.91384508]
[1769910684641,4.18879266,104.92,104.9,4.38049106]
[1769910685343,4.18879266,104.93,104.9,4.38049106]
[1769910685734,13.55372883,104.93,104.9,4.38049106]
[1769910686052,13.55372883,104.92,104.89,4.38049106]
[1769910686255,4.18879266,104.92,104.89,4.38049106]
[1769910686456,13.55372883,104.92,104.89,4.38049106]
[1769910686746,4.18879266,104.92,104.89,13.91420208]
[1769910687245,23.08381609,104.94,104.9,4.38049106]
[1769910687427,4.18879266,104.94,104.91,4.38049106]
[1769910689231,13.71808109,104.94,104.91,4.38049106]
[1769910691339,17.21318725,104.94,104.91,4.38049106]
[1769910692020,13.02439459,104.94,104.91,4.38049106]
[1769910692224,4.18879266,104.93,104.9,101.59310553]
[1769910692437,4.18879266,104.93,104.91,4.38049106]
[1769910693644,17.21318725,104.94,104.91,4.38049106]
[1769910696151,4.18879266,104.92,104.9,26.48]
[1769910696455,4.18879266,104.91,104.88,75.11473556]
[1769910697226,4.18879266,104.91,104.88,4.38049106]
[1769910697455,7.68389882,104.91,104.88,4.38049106]
[1769910698249,17.21605473,104.91,104.88,4.38049106]
[1769910699336,9.53056983,104.93,104.89,4.15154123]
[1769910699536,4.2521225,104.92,104.89,4.15154123]
[1769910700664,17.27779849,104.93,104.9,4.15154123]
[1769910700957,13.78269233,104.93,104.9,4.15154123]
[1769910702855,4.15036138,104.92,104.9,4.15154123]
[1769910703062,4.15036138,104.92,104.89,4.06884498]
[1769910703450,13.68093121,104.93,104.9,4.06884498]
[1769910703857,4.98053923,104.94,104.91,4.06884498]
[1769910704157,4.15036138,104.95,104.91,4.06884498]
[1769910704941,4.15036138,104.95,104.92,4.06884498]
[1769910705355,13.67846058,104.96,104.92,4.06884498]
[1769910705561,17.17248229,104.96,104.92,4.06884498]
[1769910706162,13.67846058,104.96,104.92,4.06884498]
[1769910706356,18.65654733,104.97,104.93,4.06884498]
[1769910706654,13.67709405,104.97,104.93,4.06884498]
[1769910707457,17.17111576,104.97,104.93,4.06884498]
[1769910707843,13.67709405,104.97,104.93,4.06884498]
[1769910708044,13.67709405,104.97,104.94,4.06884498]
[1769910708655,4.15036138,104.97,104.94,4.06884498]
[1769910710360,4.15036138,104.98,104.95,4.06884498]
[1769910710584,22.14814848,104.99,104.95,4.06884498]
[1769910710770,4.15036138,104.98,104.95,4.06884498]
[1769910712853,4.15036138,104.98,104.95,65.26884498]
[1769910713464,7.64438309,104.98,104.95,65.26884498]
[1769910713671,4.15036138,104.97,104.95,61.2]
[1769910714670,4.15036138,104.97,104.95,65.26884498]
[1769910715848,4.15036138,104.96,104.95,60.57356791]
[1769910717374,7.64438309,104.97,104.95,60.57356791]
[1769910717562,4.15036138,104.98,104.95,64.64241289]
[1769910718083,8.47254552,104.99,104.96,4.06884498]
[1769910718084,18.65410257,104.99,104.96,4.06884498]
[1769910718452,4.15036138,104.99,104.96,4.06884498]
[1769910718763,4.9773167,105.01,104.97,4.06884498]
[1769910718967,4.25036138,105.03,105.0,3.53414593]
[1769910719958,4.25036138,105.03,104.99,16.07496272]
[1769910720159,13.7716272,105.03,104.99,3.05682923]
[1769910720355,4.15036138,105.01,104.98,12.58202972]
[1769910720678,4.15036138,105.02,104.99,12.58149513]
[1769910720849,4.25036138,105.03,105.0,3.05682923]
[1769910721176,0.1,105.03,105.0,3.05682923]
[1769910721349,0.1,105.04,105.01,3.05682923]
[1769910721556,0.1,105.04,105.02,3.05682923]
[1769910722151,0.1,105.04,105.02,12.57857066]
[1769910722971,13.01169981,105.07,105.03,3.8769922]
[1769910723158,3.49402171,105.07,105.03,3.8769922]
[1769910723474,17.98609071,105.08,105.03,3.8769922]
[1769910724070,13.01233569,105.07,105.03,3.8769922]
[1769910724473,13.01233569,105.07,105.02,13.39873363]
[1769910724866,13.01233569,105.07,105.03,3.8769922]
[1769910725062,4.15036138,105.06,105.03,3.8769922]
[1769910725373,17.16319417,105.06,105.02,3.8769922]
[1769910725595,4.15036138,105.04,105.0,101.08062092]
[1769910725778,4.15036138,105.02,105.0,26.48]
[1769910726374,7.64438309,105.02,105.0,26.48]
[1769910726554,4.15036138,105.0,104.97,61.2]
[1769910726755,4.15036138,104.99,104.96,3.8769922]
[1769910727756,7.64438309,104.99,104.96,3.8769922]
[1769910727957,17.24340349,104.99,104.95,13.4044442]
[1769910728172,17.24340349,104.99,104.95,3.8769922]
[1769910728852,4.22460599,104.98,104.95,3.8769922]
[1769910729464,13.74938178,104.99,104.95,13.4052566]
[1769910729664,17.24340349,104.99,104.95,13.4052566]
[1769910729864,7.7186277,104.99,104.95,13.4052566]
[1769910730065,4.22460599,104.99,104.95,13.4052566]
[1769910730580,4.22460599,105.01,104.97,3.8769922]
[1769910730763,3.49402171,105.02,104.98,3.8769922]
[1769910730764,4.22460599,105.02,104.98,3.8769922]
[1769910731264,4.22460599,105.02,104.98,13.40253265]
[1769910731461,4.22460599,105.02,104.98,16.89655436]
[1769910731882,13.7456952,105.03,104.99,3.8769922]
[1769910732081,4.22460599,105.03,104.99,3.8769922]
[1769910732279,13.74583593,105.03,104.99,3.8769922]
[1769910732483,4.22460599,105.02,104.99,3.8769922]
[1769910734772,13.74661036,105.02,104.99,3.8769922]
[1769910735686,4.22460599,105.03,104.99,3.8769922]
[1769910736069,13.57063424,105.03,104.99,3.8769922]
[1769910737988,23.09234904,105.03,104.99,3.8769922]
[1769910738181,4.22460599,105.02,104.99,3.8769922]
[1769910738381,13.74632079,105.03,104.99,3.8769922]
[1769910738968,4.22460599,105.0,104.97,3.8769922]
[1769910739379,13.57063424,105.01,104.97,13.40351641]
[1769910739579,4.22460599,105.01,104.98,3.8769922]
[1769910740881,4.22460599,105.01,104.97,13.40351641]
[1769910741191,4.22460599,104.99,104.95,13.40450328]
[1769910741571,13.57063424,104.99,104.95,13.40450328]
[1769910741781,4.22460599,104.98,104.95,13.40450328]
[1769910743389,4.22460599,104.98,104.94,74.6059427]
[1769910743591,4.22460599,104.98,104.94,13.4059427]
[1769910746090,18.8711669,104.99,104.94,9.5289505]
[1769910746272,4.22460599,104.96,104.92,13.40742903]
[1769910746478,13.57063424,104.96,104.92,13.40742903]
[1769910747091,4.22460599,104.96,104.92,13.40742903]
[1769910749176,4.22460599,104.96,104.91,67.78163988]
[1769910750291,4.22460599,104.96,104.92,9.5305598]
[1769910753298,4.22460599,104.96,104.92,67.96617143]
[1769910753998,4.22460599,104.96,104.92,9.5305598]
[1769910755609,4.22460599,104.96,104.91,36.85326588]
[1769910758108,4.5,104.95,104.91,9.53197979]
[1769910758295,4.5,104.94,104.9,9.53244207]
[1769910758884,4.5,104.94,104.9,13.02554556]
[1769910761496,4.5,104.94,104.9,9.53244207]
[1769910764113,4.5,104.94,104.9,13.02554556]
[1769910765623,4.5,104.94,104.9,13.02670607]
[1769910767927,4.5,104.94,104.9,71.4623177]
[1769910770311,4.5,104.93,104.9,13.02670607]
[1769910770728,4.5,104.93,104.9,9.53244207]
[1769910771530,9.52880493,104.95,104.9,9.53244207]
[1769910771721,4.5,104.95,104.91,3.494264]
[1769910771931,4.5,104.95,104.92,3.494264]
[1769910772421,4.5,104.98,104.93,7.76953485]
[1769910772624,4.5,104.98,104.95,3.494264]
[1769910773421,3.494264,105.04,104.98,7.83081645]
[1769910773731,13.01518572,105.04,104.99,9.52471663]
[1769910775230,3.494264,105.03,104.99,9.52471663]
[1769910775434,4.26683153,105.02,104.99,9.52471663]
[1769910775824,4.26683153,105.02,104.98,9.52562392]
[1769910778249,4.26683153,105.02,104.98,13.86217637]
[1769910779921,4.26683153,105.01,104.98,13.86217637]
[1769910780321,4.26683153,105.01,104.97,37.67841686]
[1769910780537,4.26683153,105.01,104.98,4.33655245]
[1769910780844,4.26683153,105.01,104.97,41.17268086]
[1769910781227,4.26683153,105.01,104.97,37.67841686]
[1769910782545,4.26683153,105.03,105.0,4.33655245]
[1769910782925,3.494264,105.05,105.01,3.494264]
[1769910782926,4.26683153,105.05,105.01,3.494264]
[1769910783131,4.26683153,105.06,105.02,4.33655245]
[1769910783535,4.36683153,105.07,105.03,4.33655245]
[1769910784538,4.36683153,105.07,105.04,9.52018278]
[1769910786251,4.36683153,105.07,105.04,4.33655245]
[1769910787142,4.36683153,105.07,105.03,37.43904923]
[1769910787840,4.36683153,105.07,105.04,4.11523699]
[1769910788528,4.36683153,105.07,105.04,13.63478148]
[1769910794630,4.18185095,105.06,105.04,9.51954449]
[1769910796545,0.1,105.07,105.06,4.11523699]
[1769910796746,1e-08,105.07,105.06,4.11523699]
[1769910797739,1e-08,105.07,105.06,13.63360744]
[1769910798167,1e-08,105.09,105.07,4.11523699]
[1769910798363,1e-08,105.09,105.06,13.63360744]
[1769910798364,4.18185096,105.09,105.06,13.63360744]
[1769910800933,1e-08,105.09,105.07,4.11523699]
[1769910801347,4.18185095,105.12,105.08,4.11523699]
[1769910802958,4.18185095,105.12,105.09,13.63089023]
[1769910803451,4.18185095,105.13,105.1,4.11523699]
[1769910803656,13.63568937,105.14,105.1,4.11523699]
[1769910804244,7.67611495,105.15,105.1,4.11523699]
[1769910804445,7.67611495,105.15,105.11,4.11523699]
[1769910804960,4.18185095,105.15,105.11,4.11523699]
[1769910805164,4.18185095,105.15,105.12,9.51293759]
[1769910806959,4.18185095,105.14,105.12,9.51293759]
[1769910807659,7.67611495,105.14,105.11,9.51348345]
[1769910808246,7.67611495,105.14,105.11,13.62872044]
[1769910808860,4.18185095,105.11,105.06,4.11523699]
[1769910809049,4.18185095,105.1,105.07,13.63270153]
[1769910810250,3.494264,105.1,105.07,13.63270153]
[1769910810446,7.67611495,105.11,105.07,13.63270153]
[1769910811346,7.67611495,105.11,105.08,4.11523699]
[1769910811650,4.18185095,105.12,105.08,4.11523699]
[1769910812548,4.18185095,105.13,105.09,4.11523699]
[1769910812959,4.18185095,105.13,105.1,9.51474785]
[1769910815974,4.18185095,105.13,105.1,13.62998484]
[1769910816469,4.18185095,105.12,105.09,13.63047683]
[1769910817655,4.18185095,105.12,105.09,74.83047683]
[1769910820665,4.18185095,105.12,105.07,70.71695969]
[1769910820666,4.18867808,105.1,105.07,70.71695969]
[1769910820865,4.18867808,105.11,105.08,9.51604435]
[1769910821173,4.18867808,105.13,105.1,4.09699116]
[1769910821577,7.68294208,105.15,105.11,4.09699116]
[1769910821961,4.18867808,105.15,105.11,4.09699116]
[1769910823775,13.69906676,105.15,105.11,13.61054614]
[1769910824378,4.29195341,105.14,105.11,13.61054614]
[1769910824583,4.29195341,105.13,105.1,9.51430655]
[1769910825179,4.29195341,105.13,105.1,13.76808839]
[1769910826280,7.78621741,105.13,105.1,9.51430655]
[1769910826582,4.29195341,105.12,105.1,9.51430655]
[1769910837885,4.29195341,105.13,105.1,13.76808839]
[1769910838098,4.29195341,105.14,105.11,4.25378184]
[1769910838770,4.29195341,105.14,105.1,13.76808839]
[1769910841372,4.39195341,105.16,105.12,7.73637717]
[1769910841575,9.26226282,105.17,105.14,4.25378184]
[1769910841884,4.39195341,105.18,105.15,4.25378184]
[1769910842287,0.1,105.18,105.15,7.73637717]
[1769910842492,4.29195341,105.2,105.17,7.73637717]
[1769910842797,4.29195341,105.21,105.19,9.50660709]
[1769910843175,4.29195341,105.22,105.19,17.24298426]
[1769910843901,4.29195341,105.22,105.19,41.00950198]
[1769910844391,4.29195341,105.22,105.19,17.24298426]
[1769910844576,4.29195341,105.22,105.19,13.76038893]
[1769910844775,4.29195341,105.22,105.19,4.25378184]
[1769910845488,4.29195341,105.2,105.15,27.25660657]
[1769910845703,4.29195341,105.18,105.14,13.76470171]
[1769910846180,4.29195341,105.17,105.13,13.76546358]
[1769910846377,4.29195341,105.17,105.12,13.7661424]
[1769910846378,4.29195341,105.16,105.12,13.7661424]
[1769910848073,7.77454874,105.16,105.12,13.7661424]
[1769910849594,13.61464761,105.16,105.12,13.7661424]
[1769910853297,9.3226942,105.16,105.12,13.7661424]
[1769910853486,4.15869337,105.15,105.12,13.7661424]
[1769910855298,4.15869337,105.16,105.13,4.43968498]
[1769910855500,9.3226942,105.19,105.14,4.43968498]
[1769910856592,18.82973626,105.19,105.14,13.95034599]
[1769910857404,4.15869337,105.18,105.14,13.95034599]
[1769910860305,4.15869337,105.18,105.15,4.43968498]
[1769910861716,4.15869337,105.18,105.15,65.63968498]
[1769910861892,13.48138757,105.21,105.16,4.43968498]
[1769910862092,4.15869337,105.21,105.17,4.43968498]
[1769910862414,4.15869337,105.21,105.17,13.94761133]
[1769910862787,9.3226942,105.2,105.16,4.43968498]
[1769910863087,4.15869337,105.19,105.16,4.43968498]
[1769910863494,13.48138757,105.2,105.17,13.94792471]
[1769910863694,4.15869337,105.2,105.17,13.94792471]
[1769910866005,4.15869337,105.18,105.15,4.43968498]
[1769910866207,4.15869337,105.18,105.14,40.37007583]
[1769910866386,4.15869337,105.17,105.14,40.37007583]
[1769910867702,4.15869337,105.17,105.14,30.85968498]
[1769910867904,4.15869337,105.17,105.14,40.37074669]
[1769910869507,13.48138757,105.18,105.14,40.37074669]
[1769910869709,4.15869337,105.17,105.14,40.37074669]
[1769910872408,7.63834532,105.16,105.13,4.43968498]
[1769910873501,7.63834532,105.15,105.12,13.95243656]
[1769910875106,4.15869337,105.15,105.12,13.95243656]
[1769910878892,22.32703896,105.17,105.13,13.90844422]
[1769910879106,17.35752044,105.17,105.14,4.39642289]
[1769910881510,4.36911173,105.16,105.13,13.90844422]
[1769910883827,4.2149349,105.14,105.12,40.3874902]
[1769910886309,3.47965195,105.16,105.12,40.3874902]
[1769910886517,4.2149349,105.15,105.12,40.3874902]
[1769910890528,7.69595157,105.15,105.12,40.3874902]
[1769910891026,7.69595157,105.15,105.12,101.5874902]
[1769910891519,4.2149349,105.15,105.12,101.5874902]
[1769910891721,4.2149349,105.15,105.12,75.1674902]
[1769910891903,4.2149349,105.15,105.12,101.5874902]
[1769910893013,4.2149349,105.14,105.12,97.13247393]
[1769910893203,4.2149349,105.14,105.12,35.93247393]
[1769910893702,4.2149349,105.14,105.12,40.3874902]
[1769910901719,4.2149349,105.15,105.12,40.3874902]
[1769910903333,4.2149349,105.15,105.12,35.93247393]
[1769910907329,4.2149349,105.15,105.12,40.26479017]
[1769910908620,4.2149349,105.15,105.12,101.46479017]
[1769910911019,4.22794737,105.14,105.12,61.2]
[1769910912042,4.22794737,105.14,105.12,70.7128001]
[1769910912345,4.22794737,105.14,105.12,75.04511634]
[1769910913661,4.22794737,105.16,105.13,13.84426505]
[1769910913944,4.22794737,105.16,105.13,40.26426505]
[1769910916941,4.22794737,105.15,105.13,26.42]
[1769910917628,4.22794737,105.15,105.13,30.75231624]
[1769910921347,4.22794737,105.15,105.12,40.26483933]
[1769910923254,4.22794737,105.15,105.12,101.46483933]
[1769910923455,4.22794737,105.16,105.13,4.33231624]
[1769910928944,4.22794737,105.15,105.12,97.13252309]
[1769910930655,4.22794737,105.15,105.12,101.46483933]
[1769910931761,18.70597226,105.17,105.13,4.33231624]
[1769910931956,22.18698893,105.17,105.13,4.33231624]
[1769910932164,4.96923129,105.17,105.14,4.33231624]
[1769910932461,4.96923129,105.17,105.15,26.42]
[1769910932646,4.22794737,105.18,105.15,30.75231624]
[1769910933242,4.22794737,105.19,105.16,4.33231624]
[1769910933850,4.22794737,105.19,105.16,13.8408224]
[1769910934260,4.96723514,105.21,105.17,4.33231624]
[1769910934559,4.96723514,105.21,105.19,4.33231624]
[1769910936034,4.96723514,105.21,105.19,13.83822735]
[1769910936459,10.1678776,105.22,105.19,13.83822735]
[1769910939760,4.11376659,105.21,105.18,40.36361876]
[1769910939963,4.11376659,105.2,105.16,13.9453702]
[1769910940257,4.11376659,105.19,105.16,75.1453702]
[1769910940462,4.11376659,105.19,105.16,13.9453702]
[1769910940644,4.11376659,105.19,105.15,40.36633582]
[1769910940840,4.11376659,105.18,105.15,40.36633582]
[1769910941060,4.11376659,105.16,105.13,4.43648879]
[1769910941364,4.11376659,105.15,105.12,13.9489906]
[1769910945764,7.86804378,105.14,105.11,13.88988102]
[1769910945958,7.86804378,105.13,105.09,13.89173781]
[1769910946164,4.38702711,105.11,105.08,13.89266298]
[1769910946365,4.38702711,105.13,105.08,4.37634471]
[1769910946573,7.86804378,105.13,105.08,4.37634471]
[1769910947070,7.86804378,105.1,105.06,4.37634471]
[1769910947272,7.86804378,105.11,105.06,4.37634471]
[1769910947475,4.38702711,105.11,105.07,4.37634471]
[1769910947856,7.86804378,105.11,105.08,9.51646933]
[1769910948172,7.86804378,105.11,105.08,13.89281404]
[1769910948856,4.38702711,105.11,105.08,13.89281404]
[1769910949055,7.86804378,105.11,105.08,13.89281404]
[1769910949680,7.87077448,105.11,105.08,13.89281404]
[1769910950286,4.38702711,105.17,105.11,4.37634471]
[1769910950481,4.38702711,105.17,105.13,7.86009208]
[1769910950676,4.38702711,105.17,105.13,4.37634471]
[1769910950854,3.48374737,105.16,105.11,4.37634471]
[1769910951056,4.38702711,105.13,105.09,26.42]
[1769910951351,4.38702711,105.13,105.1,4.37634471]
[1769910952261,4.38702711,105.13,105.1,13.89059449]
[1769910952777,13.89922523,105.13,105.1,4.37634471]
[1769910952962,4.38702711,105.12,105.08,4.37634471]
[1769910953274,4.38702711,105.14,105.11,4.37634471]
[1769910953455,4.38702711,105.14,105.1,17.374781]
[1769910955154,4.38702711,105.14,105.11,7.86009208]
[1769910955560,4.38702711,105.15,105.11,7.86009208]
[1769910957180,4.38702711,105.15,105.12,3.48374737]
[1769910958176,4.38702711,105.15,105.11,78.5731162]
[1769910959281,4.38702711,105.14,105.1,9.51426576]
[1769910960082,4.38702711,105.14,105.1,13.89061047]
[1769910960879,4.38702711,105.14,105.11,17.37377743]
[1769910961089,4.38702711,105.15,105.12,3.48374737]
[1769910961383,4.38702711,105.15,105.12,7.86009208]
[1769910961689,4.38702711,105.17,105.13,7.86009208]
[1769910962784,4.38702711,105.17,105.13,17.37158262]
[1769910965183,4.38702711,105.17,105.13,13.88783525]
[1769910965369,4.38702711,105.17,105.13,17.37158262]
[1769910967279,4.38702711,105.17,105.13,78.57158262]
[1769910972893,4.96865018,105.18,105.15,7.87264098]
[1769910973199,4.38793811,105.2,105.17,4.38889361]
[1769910973375,4.38793811,105.2,105.17,7.87264098]
[1769910974370,4.38793811,105.2,105.17,17.38093449]
[1769910975797,4.38793811,105.21,105.18,4.38889361]
[1769910977198,4.38793811,105.21,105.18,13.89632273]
[1769910978993,4.38793811,105.21,105.18,75.09632273]
[1769910979192,4.38793811,105.21,105.18,75.09628436]
[1769910979491,4.38793811,105.21,105.18,78.58003173]
[1769910980298,4.38793811,105.21,105.18,75.09628436]
[1769910981996,10.90736458,105.22,105.2,7.87264098]
[1769910982195,5.93993023,105.22,105.2,7.87264098]
[1769910982986,10.32786834,105.22,105.19,4.38889361]
[1769910983201,4.38793811,105.21,105.18,13.89597362]
[1769910983800,0.1,105.23,105.21,1.03526165]
[1769910984002,4.96572981,105.24,105.22,1.03526165]
[1769910984304,4.38793811,105.25,105.22,1.03526165]
[1769910985185,4.38793811,105.25,105.21,14.02311963]
[1769910985893,4.38793811,105.25,105.21,10.53937226]
[1769910986093,7.87168548,105.24,105.19,35.92597138]
[1769910986279,4.38793811,105.23,105.19,26.42]
[1769910987202,4.38793811,105.23,105.19,27.45526165]
[1769910987400,4.38793811,105.21,105.17,1.03526165]
[1769910987604,4.38793811,105.21,105.17,4.51900902]
[1769910988106,4.38793811,105.21,105.18,9.50698468]
[1769910988406,4.38793811,105.21,105.18,10.54224633]
[1769910990103,4.38793811,105.21,105.18,1.03526165]
[1769910994218,4.38793811,105.21,105.18,10.54274116]
[1769910996912,4.38793811,105.24,105.2,4.51900902]
[1769910997798,4.20308325,105.26,105.22,3.48374737]
[1769910998004,4.20308325,105.26,105.23,1.03526165]
[1769910998597,4.20308325,105.26,105.22,4.51900902]
[1769910999108,4.20308325,105.26,105.23,9.50299344]
[1769911000213,4.20308325,105.24,105.19,27.24855741]
[1769911000403,4.20308325,105.23,105.19,24.80007169]
[1769911000599,7.68683062,105.23,105.19,10.54154311]
[1769911000812,4.20308325,105.22,105.19,9.50628146]
[1769911001006,7.68683062,105.22,105.19,9.50628146]
[1769911001204,4.20308325,105.22,105.19,9.50628146]
[1769911001406,4.20308325,105.22,105.19,10.54154311]
[1769911005327,4.20308325,105.22,105.19,71.74154311]
[1769911007525,4.1327604,105.24,105.2,1.03526165]
[1769911007726,4.1327604,105.24,105.21,1.03526165]
[1769911009319,4.1327604,105.25,105.21,1.03526165]
[1769911009523,4.1327604,105.25,105.22,9.50389659]
[1769911013012,4.1327604,105.25,105.21,10.53968657]
[1769911014016,4.1327604,105.24,105.21,10.53968657]
[1769911014826,4.1327604,105.22,105.18,10.54231341]
[1769911016728,4.1327604,105.21,105.18,10.54231341]
[1769911018630,4.1327604,105.21,105.18,9.50705176]
[1769911020006,4.1327604,105.21,105.18,70.70705176]
[1769911021738,4.1327604,105.24,105.2,1.03526165]
[1769911021913,4.1327604,105.24,105.2,4.5090713]
[1769911023617,4.1327604,105.24,105.2,14.01465407]
[1769911024931,3.47380965,105.22,105.19,59.97983703]
[1769911025237,4.1327604,105.21,105.19,59.97983703]
[1769911025413,4.1327604,105.19,105.15,87.41509868]
[1769911025617,4.1327604,105.18,105.15,27.43526165]
[1769911026041,4.1327604,105.18,105.15,36.94512449]
[1769911026216,4.1327604,105.18,105.15,10.54512449]
[1769911026539,4.1327604,105.15,105.1,3.47380965]
[1769911026720,4.1327604,105.15,105.11,1.03526165]
[1769911026931,4.1327604,105.14,105.1,14.02327297]
[1769911027234,4.1327604,105.14,105.1,10.54946332]
[1769911029042,7.60657005,105.14,105.1,10.54946332]
[1769911030045,4.39967822,105.13,105.1,10.54946332]
[1769911030228,4.39967822,105.12,105.09,10.55085475]
[1769911031118,7.87348787,105.13,105.09,10.55085475]
[1769911033352,9.51133492,105.14,105.08,10.55142131]
[1769911033353,7.87348787,105.12,105.08,10.55142131]
[1769911034432,7.87348787,105.12,105.09,1.03526165]
[1769911034744,7.87348787,105.12,105.08,10.55142131]
[1769911037735,4.39967822,105.11,105.08,10.55142131]
[1769911038240,4.39967822,105.11,105.08,70.53125834]
[1769911038633,4.39967822,105.11,105.08,69.49599669]
[1769911038857,4.39967822,105.1,105.08,69.49599669]
[1769911040051,7.87348787,105.11,105.08,69.49599669]
[1769911040629,4.31212461,105.08,105.05,0.2]
[1769911040827,3.47380965,105.06,105.03,13.82126908]
[1769911042450,4.26900336,105.07,105.03,13.82126908]
[1769911042451,7.74281301,105.07,105.03,13.82126908]
[1769911043353,3.47380965,105.06,105.03,13.82126908]
[1769911043555,9.34026527,105.06,105.03,13.82126908]
[1769911043846,9.34026527,105.05,105.03,0.2]
[1769911045151,13.60926863,105.04,105.03,0.15687875]
[1769911045331,4.61282125,105.02,105.01,4.30018964]
[1769911045751,4.61282125,105.02,105.01,0.2]
[1769911047633,13.95308652,105.02,104.99,0.2]
[1769911048054,13.95308652,105.02,104.99,4.30018964]
[1769911048250,13.95308652,105.02,104.99,13.82477849]
[1769911050972,9.34026527,105.02,104.99,13.82477849]
[1769911052051,13.36857859,105.02,104.99,4.30018964]
[1769911053256,9.34026527,105.01,104.99,4.30018964]
[1769911058358,4.02831332,105.01,104.99,0.2]
[1769911058561,13.36857859,105.01,104.99,0.2]
[1769911059040,22.89007271,105.03,104.99,4.51417637]
[1769911059240,13.36857859,105.02,104.99,4.51417637]
[1769911060166,13.36857859,105.02,104.98,9.42676946]
[1769911060953,13.41310589,105.01,104.97,9.52653138]
[1769911061156,4.07284062,105.01,104.97,9.52653138]
[1769911062269,4.04368462,105.01,104.98,4.44545463]
[1769911063168,4.04368462,105.01,104.98,13.97060466]
[1769911063397,4.97581202,105.04,105.0,4.44545463]
[1769911063553,4.97581202,105.04,105.01,4.44545463]
[1769911063751,3.48777747,105.05,105.01,4.44545463]
[1769911065371,7.54493324,105.05,105.02,4.44545463]
[1769911065570,4.05715577,105.05,105.02,4.44545463]
[1769911065766,7.54493324,105.05,105.02,4.44545463]
[1769911069587,4.05715577,105.04,105.01,13.96800904]
[1769911070773,4.05715577,105.05,105.02,13.96718931]
[1769911070982,7.54493324,105.04,105.01,61.38267146]
[1769911071471,4.05715577,105.04,105.01,61.38267146]
[1769911071667,4.05715577,105.03,105.01,47.4147769]
[1769911071872,4.05715577,105.02,105.01,47.4147769]
[1769911072685,7.54526554,105.02,104.99,4.44545463]
[1769911075177,3.48810977,105.05,105.01,4.44545463]
[1769911075792,4.01658421,105.04,105.01,4.44545463]
[1769911078403,4.01658421,105.04,105.01,13.9680215]
[1769911080403,4.01658421,105.06,105.02,4.44545463]
[1769911080696,4.01658421,105.06,105.02,7.9335644]
[1769911082198,4.01658421,105.06,105.02,4.44545463]
[1769911082704,4.01658421,105.06,105.02,13.96711384]
[1769911085003,4.01658421,105.05,105.02,13.96711384]
[1769911085410,4.05715577,105.03,104.99,71.63660128]
[1769911085604,3.48810977,105.03,104.99,9.52436149]
[1769911085809,4.05715577,105.01,104.98,35.98537689]
[1769911086005,4.05715577,105.01,104.98,9.52537689]
[1769911086600,3.48810977,105.02,104.98,9.52537689]
[1769911086806,17.06456219,105.05,104.99,3.48810977]
[1769911087106,13.57645242,105.05,105.01,9.52290258]
[1769911087506,13.57645242,105.05,105.02,4.29423573]
[1769911088411,4.49153032,105.08,105.04,7.7823455]
[1769911088905,4.49153032,105.08,105.05,4.29423573]
[1769911089410,14.00865511,105.08,105.04,4.29423573]
[1769911090709,4.49153032,105.09,105.05,4.29423573]
[1769911091513,7.97964009,105.09,105.05,4.29423573]
[1769911091814,17.49575238,105.09,105.05,4.29423573]
[1769911092112,4.49153032,105.08,105.05,4.29423573]
[1769911096197,4.49153032,105.08,105.05,48.63230764]
[1769911097614,4.49153032,105.06,105.03,13.81490499]
[1769911097909,7.97964009,105.06,105.03,13.81490499]
[1769911098112,3.48810977,105.06,105.04,4.29423573]
[1769911098314,7.93472478,105.07,105.04,4.29423573]
[1769911102534,23.79019404,105.09,105.04,4.29423573]
[1769911102535,13.00402665,105.09,105.05,4.29423573]
[1769911102700,9.51591688,105.09,105.06,4.29423573]
[1769911106426,13.96253189,105.09,105.06,4.29423573]
[1769911107027,17.45064166,105.09,105.06,4.29423573]
[1769911108008,17.45064166,105.09,105.06,47.84651921]
[1769911109315,13.96253189,105.09,105.06,47.84651921]
[1769911109515,9.51591688,105.09,105.07,4.29423573]
[1769911110233,13.96253189,105.09,105.06,47.84651921]
[1769911113833,13.96253189,105.09,105.06,4.29423573]
[1769911114327,17.45064166,105.09,105.06,4.29423573]